Cogmind - Beta 16 @@@ ROGUE MODE // 2026.01.13 @ 02:17:45 Player: KingCain Result: Destroyed by H2-4ZP(g) with Beamcaster Performance ------------- Evolutions (1) 500 Regions Visited (5) 1000 Robots Destroyed (19) 95 Value Destroyed (347) 347 Prototype IDs (1) 20 Alien Tech Used (0) 0 Bonus (-75) -75 TOTAL SCORE: 1887 Bonus ------- Follower Combat Kills 27 Friendly Fire -102 Cogmind --------- Core Integrity 0/400 Matter 42/300 Energy 100/100 System Corruption 1% Temperature Cool (9) Movement Core (50) Location -7/Zion Parts ------- > --- POWER (1) -------- (None) > --- PROPULSION (4) --- (None) > --- UTILITY (2) ------ (None) > --- WEAPON (2) ------- (None) > --- INVENTORY (5) ---- Flight Unit Tactical Coordination Suite Hacking Drone Bay Beamcaster Barrage Gun Peak State ------------ > --- POWER ------------ Ion Engine > --- PROPULSION ------- Improved Carbon-fiber Leg Improved Carbon-fiber Leg Makeshift Leg Enhanced Flexi-carbon Leg > --- UTILITY ---------- Layered Medium Armor Plating Layered Medium Armor Plating > --- WEAPON ----------- Slug Cannon Grenade Launcher > --- INVENTORY -------- Flight Unit Tactical Coordination Suite Hacking Drone Bay Beamcaster Barrage Gun [Rating: 37] Favorites ----------- Power Ion Engine Engine Ion Engine Propulsion Flight Unit Treads Light Treads Leg Improved Carbon-fiber Leg Flight Unit Flight Unit Utility Salvage Targeting Computer Processor Salvage Targeting Computer Protection Layered Medium Armor Plating Weapon Grenade Launcher Energy Gun EM Pulse Gun Energy Cannon Particle Cannon Ballistic Gun Assault Rifle Ballistic Cannon Slug Cannon Launcher Grenade Launcher Build | -11 -10 -10 -9 -9 -7 ------- Run | Yrd Mat Min Mat Min Zio Slots Evolved 2 | . . . 2 . . Power . | . . . . . . Propulsion 2 | . . . 2 . . Utility . | . . . . . . Weapon . | . . . . . . Parts Attached 27 | 6 6 . 4 . 11 Power 2 | 1 1 . . . . Engine 2 | 1 1 . . . . Core . | . . . . . . Reactor . | . . . . . . Propulsion 14 | 2 2 . 4 . 6 Treads 4 | 2 2 . . . . Leg 5 | . . . . . 5 Wheel . | . . . . . . Hover . | . . . . . . Flight 5 | . . . 4 . 1 Utility 4 | . 1 . . . 3 Device . | . . . . . . Storage . | . . . . . . Processor 2 | . 1 . . . 1 Hackware . | . . . . . . Protection 2 | . . . . . 2 Artifact . | . . . . . . Weapon 7 | 3 2 . . . 2 Energy Gun 1 | 1 . . . . . Energy Cannon 1 | . 1 . . . . Ballistic Gun 3 | 2 . . . . 1 Ballistic Cannon 1 | . . . . . 1 Launcher 1 | . 1 . . . . Special Weapon . | . . . . . . Impact Weapon . | . . . . . . Slashing Weapon . | . . . . . . Piercing Weapon . | . . . . . . Special Melee Weapon . | . . . . . . Unidentified Prototypes 1 | . . . . . 1 Parts Lost 7 | . . . . . 7 Power 1 | . . . . . 1 Propulsion 3 | . . . . . 3 Utility 1 | . . . . . 1 Weapon 2 | . . . . . 2 Highest Loss Streak 6 | . . . . . 6 To Critical Strikes . | . . . . . . Average Backups 3 | . 1 4 3 3 4 Power . | . . . . . . Propulsion 1 | . . 4 3 3 1 Utility . | . . . . . 1 Weapon . | . . . . . 1 Tool/Special . | . . . . . . Unused Backups 4 | . . . . . 4 Power . | . . . . . . Propulsion 1 | . . . . . 1 Utility 2 | . . . . . 2 Weapon 1 | . . . . . 1 Tool/Special . | . . . . . . Average Slot Usage (%) 87 | . 74 85 82 88 94 Engine 12 | . 14 14 11 11 10 Treads 11 | . 28 28 1 . . Leg 4 | . . . . . 7 Flight 20 | . . . 36 44 34 Processor 13 | . 3 14 11 11 16 Protection 1 | . . . . . 2 Energy Cannon 4 | . 3 14 11 11 1 Ballistic Gun 5 | . 19 . . . 1 Ballistic Cannon 4 | . . . . . 7 Launcher 9 | . 4 14 11 11 10 Peak Build Rating 37 | 5 8 8 10 10 37 Average Rating 12 | 4 5 8 9 10 18 On Entrance 6 | . 5 8 8 10 10 Avg Prop Armor Cover (%) 6 | . . . . . 6 Naked Turns 4 | . . . . . 4 Heaviest Build 31 | 7 12 12 12 12 31 Greatest Support 84 | 40 40 40 16 16 84 Greatest Overweight (x) 3 | . . . 3 . . Average Overweight (x) . | . . . . . . Largest Inventory Capacity 5 | 5 5 5 5 5 5 Average Capacity 5 | 5 5 5 5 5 5 Most Carried 5 | 1 5 5 5 3 5 Average Carried 3 | . 1 4 3 3 4 Final Capacity 5 | 5 5 5 5 5 5 Final Carried 5 | . 3 5 3 3 5 Class Distribution -------------------- 48% | Mutant 41% | Scavenger-Sprinter 9% | Scavenger-Mutant Dominant Class ---------------- Mutant | -10/Materials Mutant | -10/Mines Scavenger-Sprinter | -9/Materials Scavenger-Sprinter | -9/Mines Scavenger-Sprinter | -7/Zion Resources | -11 -10 -10 -9 -9 -7 ----------- Run | Yrd Mat Min Mat Min Zio Matter Collected 563 | 299 66 60 . . 138 Remotely . | . . . . . . Salvage Created 345 | 120 93 79 . . 53 Parts 32 | 8 2 3 . . 19 Haulers Intercepted . | . . . . . . Recyclers Shooed 1 | . . 1 . . . Parts Field Recycled . | . . . . . . Retrieved Matter . | . . . . . . Parts Self-Destructed . | . . . . . . Prevented . | . . . . . . Parts Restored . | . . . . . . Kills | -11 -10 -10 -9 -9 -7 ------- Run | Yrd Mat Min Mat Min Zio Combat Hostiles Destroyed 6 | . 2 2 . . 2 Guns 2 | . 2 . . . . Cannons 2 | . . 2 . . . AOE 2 | . . . . . 2 Classes Destroyed 7 | 2 1 1 . . 3 Tunneler 2 | 2 . . . . . Recycler 2 | 1 . 1 . . . Swarmer 2 | . . 2 . . . Grunt 2 | . 2 . . . . Zionite 9 | . . . . . 9 Wizard 1 | . . . . . 1 Mutant 1 | . . . . . 1 Best Kill Streak 8 | 2 1 2 . . 8 Combat Bots Only 2 | . 1 2 . . 2 Max Kills in Single Turn 2 | 1 1 1 . . 2 Gunslinging . | . . . . . . Exploded 1 | . . . . . 1 Melee . | . . . . . . Uniques/NPCs Destroyed . | . . . . . . Combat | -11 -10 -10 -9 -9 -7 -------- Run | Yrd Mat Min Mat Min Zio Hostile Shots Fired 130 | . 24 18 1 . 87 Missed 42 | . 3 5 1 . 33 Hits 88 | . 21 13 . . 54 Melee 19 | . . . . . 19 Projectile 69 | . 21 13 . . 35 Critical Strikes 8 | . 1 . . . 7 Damage Taken 1654 | . 331 152 . . 1171 Core 476 | . 42 17 . . 417 Absorbed by Shields . | . . . . . . Core Remaining (%) 88 | 100 . 76 . . . Volleys Fired 56 | 13 15 11 . . 17 Largest 2 | 2 2 1 . . 2 Hottest 98 | 60 98 68 . . 70 Shots Fired 101 | 26 30 11 . . 34 Gun 54 | 26 28 . . . . Cannon 29 | . 1 11 . . 17 Launcher 18 | . 1 . . . 17 Special . | . . . . . . Kinetic 58 | 13 28 . . . 17 Thermal 12 | . 1 11 . . . Explosive 18 | . 1 . . . 17 Electromagnetic 13 | 13 . . . . . Robot Hit Streak 13 | 5 13 2 . . 4 Robot Miss Streak 7 | 4 3 5 . . 7 Penetration Max . | . . . . . . Secondary Targets . | . . . . . . Shots Hit Robots 49 | 13 21 4 . . 11 Core Hits 38 | 3 6 2 . . 27 Critical Kills . | . . . . . . Critical Parts Destroyed . | . . . . . . Critical Strikes . | . . . . . . Melee Attacks . | . . . . . . Impact . | . . . . . . Slashing . | . . . . . . Piercing . | . . . . . . Sneak Attacks . | . . . . . . Combat Hostiles . | . . . . . . Follow-up Attacks . | . . . . . . Damage Inflicted 1378 | 234 252 128 . . 764 Guns 398 | 177 221 . . . . Cannons 153 | . . 81 . . 72 Explosions 827 | 57 31 47 . . 692 Melee . | . . . . . . Ramming . | . . . . . . Kinetic 372 | 79 221 . . . 72 Thermal 185 | 57 . 128 . . . Explosive 723 | . 31 . . . 692 Electromagnetic 98 | 98 . . . . . Impact . | . . . . . . Slashing . | . . . . . . Piercing . | . . . . . . Highest Corruption 1 | . . . . . 1 Average Corruption 1 | . . . . . 1 Corruption Purged . | . . . . . . Corruption Blocked . | . . . . . . Effects 2 | . . . . . 2 Matter Fused 1 | . . . . . 1 Parts Fused 1 | . . . . . 1 Overload Shots . | . . . . . . Overflow Damage 62 | . 1 17 . . 44 Projectiles 28 | . . . . . 28 Explosions 34 | . 1 17 . . 16 Melee . | . . . . . . Knockbacks 1 | . . . . . 1 Impact . | . . . . . . Kinetic 1 | . . . . . 1 Secondary . | . . . . . . Self-Inflicted Damage 78 | . 27 44 . . 7 Shots 3 | . 1 1 . . 1 Rammed . | . . . . . . Targets Rammed . | . . . . . . Kicked . | . . . . . . Crushed . | . . . . . . Highest Temperature 196 | . 40 196 . . 134 Average Temperature 51 | . 16 86 . . 52 Received Heat Transfer 372 | . 192 . . . 180 Siege Activations . | . . . . . . Martial Activations . | . . . . . . Shielding Activations . | . . . . . . Robots Disrupted . | . . . . . . Combat Hostiles . | . . . . . . Robots Corrupted . | . . . . . . Combat Hostiles . | . . . . . . Parts Fried . | . . . . . . Impact Corruptions . | . . . . . . Robots Melted . | . . . . . . Combat Hostiles . | . . . . . . Parts Melted . | . . . . . . Heat Transferred 298 | 100 . 198 . . . Parts Sabotaged . | . . . . . . Parts Stolen . | . . . . . . Parts Stripped . | . . . . . . Power Chain Reactions 1 | 1 . . . . . Alert | -11 -10 -10 -9 -9 -7 ------- Run | Yrd Mat Min Mat Min Zio Maximum Alert Level . | . . . . . . Low Security (%) 100 | 100 100 100 100 100 . Level 1 . | . . . . . . Level 2 . | . . . . . . Level 3 . | . . . . . . Level 4 . | . . . . . . Level 5 . | . . . . . . High Security . | . . . . . . Max Security . | . . . . . . Peak Influence 86 | 5 40 49 86 33 . Initial 33 | . . . . 33 . Average 10 | 1 9 16 20 33 . Influence Increases 244 | 15 64 69 96 . . Destroy 0b10 Robot/C 100 | . 40 40 20 . . Destroy 0b10 Robot/NC 20 | 15 . 5 . . . Destroy Leader 10 | . 10 . . . . Allied During Kill 1 | . . . 1 . . Successful Hack 5 | . 5 . . . . Disable Machine 15 | . . 15 . . . Destroy Structure 18 | . 9 9 . . . Partial Spotted 30 | . . . 30 . . Lose Combat Pursuer 45 | . . . 45 . . Influence Decreases 244 | 15 64 69 10 53 33 Entered New Map 86 | . . . . 53 33 Time Decay 158 | 15 64 69 10 . . Squads Dispatched . | . . . . . . Investigation . | . . . . . . Extermination . | . . . . . . Reinforcement . | . . . . . . Assault . | . . . . . . Garrison . | . . . . . . Intercept . | . . . . . . Searches Triggered . | . . . . . . Construction Impeded . | . . . . . . Haulers Reinforced . | . . . . . . Active Scanning Responses . | . . . . . . Cargo Convoy Interrupts . | . . . . . . Stealth | -11 -10 -10 -9 -9 -7 --------- Run | Yrd Mat Min Mat Min Zio Distress Signals . | . . . . . . Communications Jammed . | . . . . . . Distress Signals . | . . . . . . Times Spotted 31 | . 4 3 4 . 20 Peak Tracking Total 8 | . 2 3 4 . 8 Tactical Retreats 2 | . . . 1 . 1 Traps | -11 -10 -10 -9 -9 -7 ------- Run | Yrd Mat Min Mat Min Zio Traps Triggered . | . . . . . . Indirectly . | . . . . . . Trap Hack Attempts . | . . . . . . Triggered . | . . . . . . Disarmed . | . . . . . . Reprogrammed . | . . . . . . Reused . | . . . . . . Traps Extracted . | . . . . . . Installed . | . . . . . . Triggered . | . . . . . . Machines | -11 -10 -10 -9 -9 -7 ---------- Run | Yrd Mat Min Mat Min Zio Machines Disabled 1 | . . 1 . . . Max in Single Turn 1 | . . 1 . . . Machines Repaired . | . . . . . . Machines Dismantled . | . . . . . . Machines Sabotaged . | . . . . . . Overloaded Fab Kills . | . . . . . . Hacking | -11 -10 -10 -9 -9 -7 --------- Run | Yrd Mat Min Mat Min Zio Machines Accessed 2 | . 1 . . . 1 Terminals 1 | . 1 . . . . Fabricators . | . . . . . . Repair Stations . | . . . . . . Recycling Units . | . . . . . . Scanalyzers . | . . . . . . Garrison Access . | . . . . . . Total Hacks 5 | . 2 . . . 3 Successful 5 | . 2 . . . 3 Failed . | . . . . . . Catastrophic . | . . . . . . Database Lockouts . | . . . . . . Manual 1 | . . . . . 1 Terminals 2 | . 2 . . . . Fabricators . | . . . . . . Repair Stations . | . . . . . . Recycling Units . | . . . . . . Scanalyzers . | . . . . . . Garrison Access . | . . . . . . Terminal Hacks 5 | . 2 . . . 3 Record 1 | . 1 . . . . Part Schematic 3 | . . . . . 3 Hauler Manifests 1 | . 1 . . . . Fabricator Hacks . | . . . . . . Repair Station Hacks . | . . . . . . Recycling Unit Hacks . | . . . . . . Scanalyzer . | . . . . . . Garrison Access Hacks . | . . . . . . Unauthorized Hacks . | . . . . . . Terminals . | . . . . . . Fabricators . | . . . . . . Repair Stations . | . . . . . . Recycling Units . | . . . . . . Scanalyzers . | . . . . . . Garrison Access . | . . . . . . Data Cores Recovered . | . . . . . . Used . | . . . . . . Hacking Detections 1 | . 1 . . . . Full Trace Events . | . . . . . . Feedback Events . | . . . . . . Feedback Blocked . | . . . . . . Robot Schematics Acquired 3 | . . . . . 3 Robots Built . | . . . . . . Authchips . | . . . . . . Time . | . . . . . . Total Robot Build Rating . | . . . . . . Part Schematics Acquired 18 | . . . . . 18 Parts Built . | . . . . . . Authchips . | . . . . . . Time . | . . . . . . Total Part Build Rating . | . . . . . . Part Studies Acquired . | . . . . . . Parts Repaired . | . . . . . . Time . | . . . . . . Parts Recycled . | . . . . . . Recycled Matter . | . . . . . . Retrieved Matter . | . . . . . . Retrieved Components . | . . . . . . Parts Scanalyzed . | . . . . . . Part Schematics Acquired . | . . . . . . Parts Damaged . | . . . . . . Bothacking | -11 -10 -10 -9 -9 -7 ------------ Run | Yrd Mat Min Mat Min Zio Used RIF Installer . | . . . . . . Robots Hacked . | . . . . . . Non-combat . | . . . . . . Combat . | . . . . . . Robot Hacks Applied . | . . . . . . Relay Couplers Released . | . . . . . . Fabnet Peak Effective % . | . . . . . . Robots Rewired . | . . . . . . Allies Hacked . | . . . . . . Hacks Repelled . | . . . . . . Allies | -11 -10 -10 -9 -9 -7 -------- Run | Yrd Mat Min Mat Min Zio Total Allies 5 | . . 1 . . 4 Largest Group 4 | . . 1 1 . 4 Highest-Rated Group 257 | . . 31 31 . 257 Highest-Rated Ally 96 | . . 31 31 . 96 Total Orders . | . . . . . . Ally Attacks 15 | . . . 2 . 13 Total Damage 502 | . . . 44 . 458 Kills 2 | . . . 1 . 1 Allies Corrupted . | . . . . . . Allies Melted . | . . . . . . Intel | -11 -10 -10 -9 -9 -7 ------- Run | Yrd Mat Min Mat Min Zio Active Infowar (turns) . | . . . . . . Robot Analysis Total . | . . . . . . Derelict Logs Recovered 1 | . . . . . 1 Drone Launches . | . . . . . . Drone Recoveries . | . . . . . . Exploration | -11 -10 -10 -9 -9 -7 ------------- Run | Yrd Mat Min Mat Min Zio Turns Passed 1392 | 195 263 222 49 4 659 Spaces Moved 1973 | 95 129 123 128 13 1485 Core 5 | 4 . . 1 . . Treads 343 | 91 129 123 . . . Legs 84 | . . . . . 84 Wheels . | . . . . . . Hover . | . . . . . . Flight 1541 | . . . 127 13 1401 Fastest Speed 29 | 50 160 160 31 31 29 Average Speed 57 | 155 160 160 32 31 36 Slowest Speed 200 | 160 160 160 200 31 126 Overloaded Moves . | . . . . . . Propulsion Burnouts . | . . . . . . Robots Hopped . | . . . . . . Potential Cave-ins . | . . . . . . Cave-ins Triggered . | . . . . . . Exploration Rate (%) 23 | 5 26 14 19 4 74 Regions Visited 5 Branch Regions 3 Pre-discovered Areas 1 | . . . . . 1 Known Exits Taken . | . . . . . . Unknown Exits Taken 5 | 1 1 1 1 1 . Scrap Searched 2 | . . . . . 2 Spaces Dug . | . . . . . . Terrain Destroyed 38 | 5 8 10 . . 15 Melee . | . . . . . . Projectile 1 | . . . . . 1 AOE 37 | 5 8 10 . . 14 Terrain Rammed . | . . . . . . Walls Destroyed . | . . . . . . Machines Disabled . | . . . . . . Actions | -11 -10 -10 -9 -9 -7 --------- Run | Yrd Mat Min Mat Min Zio Total 2136 | 115 160 141 135 12 1573 Wait 44 | . . . . . 44 Move 1968 | 94 128 122 127 12 1485 Hop . | . . . . . . Pick Up 13 | . 2 5 2 . 4 Fast Attach 21 | 6 6 . . . 9 Attach 5 | . . . 4 . 1 Detach 7 | 1 5 . . . 1 Swap 1 | . . . . . 1 Drop 21 | 1 4 3 2 . 11 Fire 56 | 13 15 11 . . 17 Melee . | . . . . . . Ram . | . . . . . . Kick . | . . . . . . Crush . | . . . . . . Escape Stasis . | . . . . . . Rewire . | . . . . . . Trap . | . . . . . . Miscellaneous . | . . . . . . Route ------- -11/Scrapyard -10/Materials -10/Mines -9/Materials -9/Mines -7/Zion (discovered 1 exit: Dee) History --------- Turn | Location | Event 7 | -11/Scrapyard | Discovered new exit (range 16) 196 | -11/Scrapyard | Entered Materials 313 | -10/Materials | Build established: Mutant 441 | -10/Materials | Discovered new exit (range 8) 459 | -10/Materials | Entered Mines 588 | -10/Mines | Discovered new exit (range 5) 591 | -10/Mines | Received a Mining Laser from a helpful Derelict 681 | -10/Mines | Entered Materials 681 | -9/Materials | Accompanied by 1 ally 681 | -9/Materials | Evolved 2 slots: Propulsion x2 726 | -9/Materials | Discovered new exit (range 12) 730 | -9/Materials | Entered Mines 731 | -9/Mines | Assembled infested the area 731 | -9/Mines | A Derelict revealed a hidden shortcut to a safe place 734 | -9/Mines | Entered Zion 752 | -7/Zion | Learned Factory machine intel 763 | -7/Zion | Gained Derelict followers 822 | -7/Zion | Learned location of Recycling (-7) 865 | -7/Zion | Given the Hacking Drone Bay 865 | -7/Zion | Found Prototype Device 963 | -7/Zion | Identified exit to Deep Caves 964 | -7/Zion | Given A8's code to call for help 980 | -7/Zion | Build established: Scavenger-Sprinter 1181 | -7/Zion | Enhanced Grunt warped into view, answering call for help 1182 | -7/Zion | Enhanced Grunt warped into view, answering call for help 1198 | -7/Zion | Attacked by Zionites 1390 | -7/Zion | Core integrity fell below 50% 1392 | -7/Zion | Core integrity fell below 20% 1393 | -7/Zion | Destroyed by H2-4ZP(g) with Beamcaster Last Messages --------------- 01385_ Lyr. Medium Armor Plating destroyed. 01385_ Imp. Carbon-fiber Leg destroyed. 01386_ TX-T8G(z) heat damages Mak. Power Source, Mak. Laser, Mak. Leg. 01387_ TX-T8G(z) heat spikes uncontrollably. 01388_ TX-T8G(z) heat damages core (-2). 01388_ TX-T8G(z) overheating. 01389_ Grenade Launcher destroyed. 01389_ Critical hit (Burn: +37). 01389_ TX-T8G(z) overheating. 01389_ Slug Cannon destroyed. 01389_ Imp. Carbon-fiber Leg destroyed. 01390_ TX-T8G(z) overheating. 01391_ TX-T8G(z) heat damages core (-2). 01391_ TX-T8G(z) overheating. 01392_ TX-T8G(z) heat short circuits Mak. Laser. 01392_ TX-T8G(z) pulls a Mak. Laser out of the Twisted Machinery. 01392_ TX-T8G(z) overheating. 01393_ TX-T8G(z) heat spikes uncontrollably. Map ----- +----------------------------------------------------+ | ??????????????????#|" "[#????????????????????????? | | ??????????????????#/ #????????????????????????? | | ??????????????????#[" " #????????????????????????? | | ??????????????????#"" ""#????????????????????????? | | ????????????????#### #####?###########?????????? | | ????????????????#""" ###"###"""#"#"""####??????? | | ????????????????#"""" ##"""#"#""""""""""####???? | | ???????????????##"" " ##"""""#"""" """"#"#"???? | | ???????????????#""" ==" """ """""""???? | | ??###?????????##"" "" "" """#??? | | ### ###########""" " = """ ""#### | | " # # #"""#"""" """ "" """"" | | " ""###"""""" """" ""#"" | | "##"" """"" """ """ """""" | | ""##" """" "" """"""""" | | * """"" "" """" """" | | ! = = """" g "" | | # // """ "" | | " ! "" " ""#"" """ " | | " ! """" "" "z"""" "" """" | | " *[*"""""""" """"" """"" | | " ! """ """ """"" | | " "" | | "" "" "" | | """ " zz z | | =""""" z@ | | "" =" """"" zz | | " """"##" "" " """" """"" | | "" ""#"##""""" """" """"""""""" | | "" """#"""""""" """"""""" "##""##""#" | | "" "#""" ""#" ""#"##""""" ""#####"##"# | | "" """" """ """#####"""""""""""""???###### | | " """ "" """##????###"###"#"""#????????# | | " "" "" """#???????#"??####""#????????# | | "" "" ""###??????????????#??????????? | | """ """"###???????????????????????? | | """" """"#"#???????????????????????? | | ""#"" """""###??????????????????????# | | """ """" "" """#??????????????????????# | | """" """ ""#??????????????????????# | | """ """ "##??????????????????????? | | "" """" ""#???????????????????????? | | "" """" """"#??????????????????????## | | """###???????????????????####" | | " """"#????????????????????#" #" | | " """ """####????????????????## | | """" """#""#"#????????????????# | | "" """"" """""""#?#???????????????## | | """""""" """" "#"#????????????????## # | | """ ""##"" "" ""#??????????????????#### | +----------------------------------------------------+ Best States ------------- Heat Dissipation 28 Energy Generation 10 Energy Capacity 250 Matter Stores 300 Matter Capacity 300 Sight Range 16 Terrain Scan Density 110 Armor Coverage 450 Evasion (%) 63 Recoil Reduction 2 Salvage Targeting 1 Item Schematics ----------------- Proton Cannon | -7/Zion | Archive Adv. Assault Cannon | -7/Zion | Archive Arm. Medium Treads | -7/Zion | Archive Imp. Kinecellerator | -7/Zion | Archive Imp. Titanium Leg | -7/Zion | Archive Imp. Core Shielding | -7/Zion | Archive Transmission Jammer | -7/Zion | Archive Imp. Particle Charger | -7/Zion | Archive Adv. Terrain Scanner | -7/Zion | Archive Imp. Field Recycling Unit | -7/Zion | Archive Gauss Rifle | -7/Zion | Archive Phase Cannon | -7/Zion | Archive Coolant Injector | -7/Zion | Archive Imp. Heavy Armor Plating | -7/Zion | Archive Arm. Huge Wheel | -7/Zion | Archive Flamer | -7/Zion | Free Hvy. Beamcaster | -7/Zion | Free Bore Cannon | -7/Zion | Free Robot Schematics ------------------ A-02 Transporter | -7/Zion | Archive B-48 Gladiator | -7/Zion | Archive T-07 Excavator | -7/Zion | Archive Fabricated ------------ Nothing Repaired ---------- Nothing Studied --------- None Alien Tech Used ----------------- None Achievements -------------- Help From High Places Overwhelming Challenges ------------ None Game ------ Seed CooledDisruptionStreamer Manual? 0 Play Time 00:31:53 Cumulative 9.5 hours Start 2026.01.13 @ 01:38:15 End 2026.01.13 @ 02:17:45 Sessions 1 Manual Loads 0 Difficulty Rogue Special Mode None Game No. 27 Rogue 27 Adventurer 0 Explorer 0 Win Type - Total 0 Types 0/0/0/0/0/0/0/0/0/0 Lore% 4 Gallery% 14 Achievement% 9 Wizard Run 0 Options --------- Layout 1 ASCII 0 Keyboard 1 Movement Vi Keybinds 0 Fullscreen 1 Font 24/Smallcaps Map View 50x35 Zoom Use 0% Tactical HUD 1 Map Filters NONE Filters NONE Steam 1 RUN: 295d9028-1f11-4e27-aa96-1bb437d2a3f8